Cogmind - Beta 16 @@@ ROGUE MODE // 2026.01.31 @ 13:24:26 Player: saltine Result: Escaped singularity! Performance ------------- Evolutions (9) 4500 Regions Visited (26) 5200 Robots Destroyed (361) 1805 Value Destroyed (20348) 20348 Prototype IDs (381) 7620 Alien Tech Used (10) 2000 Bonus (45089) 45089 TOTAL SCORE: 86562 Bonus ------- High Alert Combat Kills 2902 Follower Combat Kills 240 Met Warlord at Base 500 MAIN.C Attacked Warlord 500 Warlord Defense Kills 396 Destroyed MAIN.C Guards 500 Met MAIN.C 5000 Destroyed MAIN.C Shell 5000 Destroyed MAIN.C 10000 Met Architect 300 Destroyed A8 300 Destroyed A6 400 Destroyed A5 500 Destroyed A4 700 Destroyed Architect 15000 Win 3000 Friendly Fire -149 Cogmind --------- Core Integrity 119/1600 Matter 295/300 Energy 98/100 System Corruption 6% Temperature Cool (0) Movement Core (50) Location Near Former Tau Ceti IV Parts ------- > --- POWER (3) -------- (None) > --- PROPULSION (8) --- (None) > --- UTILITY (11) ----- (None) > --- WEAPON (4) ------- (None) > --- INVENTORY (5) ---- Cooled Antigrav System Combat Linear Gravjet Quantum Capacitor Experimental Weapon Cycler Peak State ------------ > --- POWER ------------ Quantum-Vortex Reactor > --- PROPULSION ------- Hovering Antigrav-Cooled Exoskeleton Experimental Gyrokinetic Inverter > --- UTILITY ---------- Armored Scrap Engine Desublimator Experimental Coolant Injector Huge Storage Unit Experimental Targeting Computer Experimental Core Analyzer Experimental Reaction Control System Centrium Heavy Armor Plating AEGIS Remote Shield > --- WEAPON ----------- Hvy. Thermal Plasma Construct/C > --- INVENTORY -------- Experimental Biometal Heavy Treads Experimental Biometal Leg Combat Linear Gravjet Experimental Heat Sink Experimental Cooling System Experimental Energy Well Experimental Matter Compressor Triangulator Improved Kinecellerator Quantum Capacitor Experimental Weapon Cycler Centrium Heavy Armor Plating Graphene Brace Experimental Force Field AEGIS Remote Shield Long-range Tractor Beam Mapping Drone Bay Enhanced Nova Cannon Cooled Nova Cannon Concept Plasma Driver Concept Plasma Driver Enhanced Hardcell Cannon [Rating: 250] Favorites ----------- Power Constructs Engine Light Ion Engine Power Core Meta Core Reactor Constructs Propulsion Constructs Treads Advanced Treads Leg Aluminum Leg Wheel Wheel Hover Unit Constructs Flight Unit Improved Cesium-ion Thruster Utility Armored Scrap Engine Device Armored Scrap Engine Storage Huge Storage Unit Processor Experimental Core Analyzer Hackware Advanced System Shield Protection Gun Armor Artifact Phase Armor Weapon Constructs Energy Gun Small Laser Energy Cannon Constructs Ballistic Gun High-powered Shotgun Ballistic Cannon Battle Cannon Launcher Subdweller Shrapnel Launcher Special Weapon Remote Datajack Impact Weapon Core Stripper Slashing Weapon Sigix Broadsword Build | -11 -10 -10 -10 -8 -7 -7 -7 -5 -5 -5 -5 -5 -5 -4 -4 -4 -4 -4 -3 -3 -3 -3 -2 -1 -1 -1 ------- Run | Yrd Mat Min Sub Mat Fac Sto Rec Fac Was Fac Upp Upp Zhi Pro Fac Upp Upp War Pro Res Qua Frg Res Acc Com Ac0 Slots Evolved 18 | . . . . 4 2 . . 4 . . . . . . 2 . . . . 2 . . 2 2 . . Power 2 | . . . . . . . . 1 . . . . . . . . . . . . . . . 1 . . Propulsion 5 | . . . . 2 1 . . 1 . . . . . . . . . . . . . . 1 . . . Utility 9 | . . . . 2 1 . . . . . . . . . 2 . . . . 2 . . 1 1 . . Weapon 2 | . . . . . . . . 2 . . . . . . . . . . . . . . . . . . Parts Attached 186 | 6 1 2 20 31 7 12 3 4 1 9 2 2 3 . 5 2 1 14 3 2 17 7 1 7 16 8 Power 10 | . 1 1 1 4 . 2 . 1 . . . . . . . . . . . . . . . . . . Engine 6 | . 1 1 . 2 . 2 . . . . . . . . . . . . . . . . . . . . Core 4 | . . . 1 2 . . . 1 . . . . . . . . . . . . . . . . . . Reactor . | . . . . . . . . . . . . . . . . . . . . . . . . . . . Propulsion 31 | 2 . . 4 8 2 5 . 1 1 . . . . . 1 1 . 2 1 . 1 . . . 1 1 Treads 14 | 2 . . 3 2 2 4 . . . . . . . . . . . . . . . . . . . 1 Leg 10 | . . . . 6 . . . . . . . . . . . 1 . 2 1 . . . . . . . Wheel 1 | . . . 1 . . . . . . . . . . . . . . . . . . . . . . . Hover 3 | . . . . . . . . . . . . . . . 1 . . . . . 1 . . . 1 . Flight 3 | . . . . . . 1 . 1 1 . . . . . . . . . . . . . . . . . Utility 89 | 2 . . 5 7 1 1 2 1 . 6 2 . 2 . 4 1 1 8 2 1 11 5 1 6 13 7 Device 47 | 1 . . 2 1 . . 2 . . 5 1 . 1 . 2 1 1 2 . 1 8 4 . 4 5 6 Storage 8 | 1 . . . 3 . . . . . 1 . . . . . . . 1 . . . 1 . . 1 . Processor 8 | . . . . . . . . 1 . . . . . . . . . 2 1 . 1 . . 1 2 . Hackware 2 | . . . . . . . . . . . . . . . 2 . . . . . . . . . . . Protection 23 | . . . 3 3 1 1 . . . . 1 . 1 . . . . 3 1 . 1 . 1 1 5 1 Artifact 1 | . . . . . . . . . . . . . . . . . . . . . 1 . . . . . Weapon 56 | 2 . 1 10 12 4 4 1 1 . 3 . 2 1 . . . . 4 . 1 5 2 . 1 2 . Energy Gun 12 | 2 . . 2 4 1 . . . . . . . . . . . . 1 . . . 2 . . . . Energy Cannon 16 | . . . 2 . . 2 1 . . 2 . 2 1 . . . . 1 . 1 1 . . 1 2 . Ballistic Gun 10 | . . 1 2 5 1 . . . . . . . . . . . . 1 . . . . . . . . Ballistic Cannon 7 | . . . 1 3 1 . . 1 . . . . . . . . . . . . 1 . . . . . Launcher 6 | . . . 2 . . 2 . . . 1 . . . . . . . . . . 1 . . . . . Special Weapon 3 | . . . 1 . 1 . . . . . . . . . . . . 1 . . . . . . . . Impact Weapon 1 | . . . . . . . . . . . . . . . . . . . . . 1 . . . . . Slashing Weapon 1 | . . . . . . . . . . . . . . . . . . . . . 1 . . . . . Piercing Weapon . | . . . . . . . . . . . . . . . . . . . . . . . . . . . Special Melee Weapon . | . . . . . . . . . . . . . . . . . . . . . . . . . . . Unidentified Prototypes 43 | . . . . 2 . 4 1 . 1 1 . . 3 . 1 . . 8 . 1 13 3 . 1 3 1 Parts Lost 42 | . . . 10 9 . 3 . 1 1 1 . 1 . . 1 . . . . 1 1 3 1 3 1 5 Power 5 | . . . 2 1 . . . . . . . . . . . . . . . 1 . . 1 . . . Propulsion 9 | . . . 3 4 . . . 1 . 1 . . . . . . . . . . . . . . . . Utility 17 | . . . 1 1 . 1 . . 1 . . 1 . . . . . . . . 1 2 . 3 1 5 Weapon 11 | . . . 4 3 . 2 . . . . . . . . 1 . . . . . . 1 . . . . Highest Loss Streak 9 | . . . 9 2 . 1 . 1 1 1 . 1 . . 1 . . . . 1 1 3 1 3 1 2 To Critical Strikes 1 | . . . . . . . . . . 1 . . . . . . . . . . . . . . . . Average Backups 17 | 4 6 7 6 15 18 18 17 18 13 16 17 15 17 19 20 20 20 22 21 22 21 20 21 20 21 21 Power . | 1 1 . . . . . . . . . . . . . . . . . . . . . 2 2 . . Propulsion 2 | 1 2 2 1 2 5 4 4 3 . 1 2 . . . 1 2 1 1 2 3 1 . . . 1 3 Utility 8 | . 1 1 3 4 3 4 5 7 7 7 10 9 11 12 13 13 12 13 12 12 11 11 8 7 11 13 Weapon 4 | 1 2 2 1 7 7 7 5 5 5 6 4 4 4 3 3 3 3 4 3 4 4 3 9 8 5 4 Tool/Special . | . . . . . . . . . . . . . . . . . . . . . . . . . . . Unused Backups 123 | . . 3 4 9 3 5 14 5 10 3 . 2 . 1 2 1 1 12 3 1 6 4 2 8 16 8 Power 11 | . . . . . . 1 1 . 1 . . . . . . . . . 1 . 1 . 2 2 2 . Propulsion 41 | . . 2 1 1 . 2 8 3 . 1 . 2 . . 2 1 . 3 1 1 3 1 . 1 6 2 Utility 26 | . . . 1 4 . 2 1 1 4 . . . . . . . . 5 . . 1 2 . . 2 3 Weapon 44 | . . 1 2 4 3 . 4 1 5 2 . . . 1 . . 1 3 1 . 1 1 . 5 6 3 Tool/Special 1 | . . . . . . . . . . . . . . . . . . 1 . . . . . . . . Average Slot Usage (%) 61 | . 100 100 96 87 99 99 68 44 40 43 52 49 42 50 47 52 57 53 47 47 52 49 49 45 47 50 Engine 2 | . 14 14 7 1 6 6 6 5 2 . . . . . . . . . . . . . . . . . Core 3 | . . . 5 4 . . . 4 7 10 10 10 11 11 6 5 5 5 . . . . . . . . Reactor 1 | . . . . . . . . . . . . . . . . . . . 4 4 4 4 4 4 4 3 Treads 6 | . 28 28 26 2 16 32 10 . . . . 4 4 . 1 5 5 3 . . . . . 2 2 . Leg 2 | . . . . 23 15 1 . . . 2 5 . . . . . 5 5 2 . . . . . . . Hover 1 | . . . . . . . . 4 . . . . . . . . . . . . 5 4 4 1 3 7 Device 15 | . 14 14 13 6 13 10 13 11 10 15 21 12 7 11 11 20 21 17 16 21 17 13 20 19 23 18 Storage 5 | . 14 14 13 6 6 6 7 5 4 4 5 5 5 5 5 5 5 5 5 4 4 4 4 4 4 3 Processor 1 | . . . . . . . . . . . . . . . . . . . 5 4 7 8 4 5 1 7 Protection 5 | . . . . 14 13 16 10 3 . . . 4 5 5 5 5 5 4 3 . 1 4 2 3 4 4 Energy Gun 1 | . 28 19 9 5 3 3 . . . . . . . . . . . . . . . . 4 . . . Energy Cannon 5 | . . . 8 . . 7 13 2 . 7 10 9 6 9 4 5 5 5 . 1 1 1 4 . . 2 Ballistic Gun 2 | . . 8 4 17 20 10 . . . . . . . . . . . . . . . . . . . . Ballistic Cannon 2 | . . . 3 1 2 . . 5 5 . . . . 1 5 5 5 3 4 4 3 2 . 3 3 1 Peak Build Rating 250 | 6 7 8 17 49 55 66 67 93 90 111 114 113 114 117 119 124 121 155 150 151 202 192 184 197 240 250 Average Rating 113 | 4 7 7 13 38 53 58 57 80 79 94 110 105 100 110 109 113 120 129 133 138 175 176 174 178 224 240 On Entrance 99 | . 6 7 8 13 45 55 56 61 89 70 111 114 106 114 111 114 124 121 144 136 131 160 176 184 197 235 Avg Prop Armor Cover (%) 3 | . . . . 5 6 3 . . . . . . . . . . 2 2 . . . . . . . . Naked Turns 37 | . . . 34 . . . . . . . . . . . . . . . . . . . . . . 3 Heaviest Build 213 | 8 11 11 31 72 74 84 78 87 78 121 133 147 146 139 152 160 153 168 144 137 190 183 177 183 213 196 Greatest Support 295 | 40 40 40 42 47 82 110 110 56 61 56 46 46 50 50 83 83 83 178 164 150 161 201 134 164 295 278 Greatest Overweight (x) 19 | . . . 1 2 1 . 19 2 1 2 2 3 2 2 4 1 1 1 1 . 1 1 2 1 1 . Average Overweight (x) . | . . . . . . . . 1 . 1 2 2 2 2 2 1 1 . . . . . 1 . . . Largest Inventory Capacity 25 | 8 8 8 8 20 20 20 20 20 20 25 25 25 25 25 25 25 25 25 25 25 25 25 25 25 25 25 Average Capacity 21 | 7 8 8 7 16 20 20 20 20 16 24 25 25 25 25 25 25 25 25 25 25 25 25 25 25 25 24 Most Carried 25 | 7 6 8 8 20 20 20 20 20 19 25 21 21 21 23 25 25 25 25 25 25 25 25 25 25 25 25 Average Carried 19 | 5 6 7 7 15 18 19 18 19 15 18 20 16 18 21 23 23 23 24 22 24 24 23 24 21 23 24 Final Capacity 25 | 8 8 8 5 20 20 20 20 20 5 25 25 25 25 25 25 25 25 25 25 25 25 25 25 25 25 5 Final Carried 25 | 7 6 8 3 19 20 20 20 18 5 21 20 16 18 21 23 22 25 25 23 23 24 25 23 17 25 5 Scrap Engine Consumption 210 | . . . . . . . 56 6 4 11 2 6 5 3 6 . . 9 6 6 21 10 8 14 32 5 Constructs Created 3 | . . . . . . . 3 . . . . . . . . . . . . . . . . . . . Constructs Modified 93 | . . . . . . . 18 3 2 5 . 4 2 2 4 . . 3 4 3 8 3 8 8 9 7 Class Distribution -------------------- 54% | Construct 16% | Mutant 16% | Scavenger-Construct 6% | Tank 3% | Scavenger-Mutant Dominant Class ---------------- Mutant | -10/Materials Mutant | -10/Mines Mutant | -10/Subcaves Tank | -8/Materials Scavenger-Tank | -7/Factory Tank | -7/Storage Construct | -7/Recycling Construct | -5/Factory Construct | -5/Waste Construct | -5/Factory Construct | -5/Upper Caves Construct | -5/Upper Caves Construct | -5/Zhirov Construct | -4/Proximity Caves Construct | -4/Factory Construct | -4/Upper Caves Construct | -4/Upper Caves Construct | -4/Warlord Construct | -3/Proximity Caves Construct | -3/Research Construct | -3/Quarantine Construct | -3/Protoforge Construct | -2/Research Construct | -1/Access Scavenger-Construct | -1/Command Scavenger-Construct | -1/Access_0 Resources | -11 -10 -10 -10 -8 -7 -7 -7 -5 -5 -5 -5 -5 -5 -4 -4 -4 -4 -4 -3 -3 -3 -3 -2 -1 -1 -1 ----------- Run | Yrd Mat Min Sub Mat Fac Sto Rec Fac Was Fac Upp Upp Zhi Pro Fac Upp Upp War Pro Res Qua Frg Res Acc Com Ac0 Matter Collected 16942 | 260 10 20 551 1368 155 559 325 161 . 646 75 582 88 273 220 32 50 228 564 225 1175 626 1227 2072 3202 2248 Remotely 5378 | . . . . . . . . . . 401 . . . . . . . . . . 216 118 1104 1267 1748 524 Salvage Created 20603 | 164 18 50 493 1419 70 743 1577 163 . 1379 . 479 168 281 310 56 . 225 334 388 2278 1337 810 2632 3315 1914 Parts 968 | 11 4 4 28 83 5 25 69 9 . 56 . 19 1 17 23 3 . 7 17 14 101 70 22 135 121 124 Haulers Intercepted 9 | . . . . 5 . . . . . 2 . . . . 1 . . . . . 1 . . . . . Recyclers Shooed 11 | 1 . . . . . . 5 . . 1 . . . . . . . . . . . . . 3 1 . Parts Field Recycled . | . . . . . . . . . . . . . . . . . . . . . . . . . . . Retrieved Matter . | . . . . . . . . . . . . . . . . . . . . . . . . . . . Parts Self-Destructed 57 | . . . 9 . . . . . . . . 28 1 4 . 2 . . 13 . . . . . . . Prevented . | . . . . . . . . . . . . . . . . . . . . . . . . . . . Parts Restored . | . . . . . . . . . . . . . . . . . . . . . . . . . . . Kills | -11 -10 -10 -10 -8 -7 -7 -7 -5 -5 -5 -5 -5 -5 -4 -4 -4 -4 -4 -3 -3 -3 -3 -2 -1 -1 -1 ------- Run | Yrd Mat Min Sub Mat Fac Sto Rec Fac Was Fac Upp Upp Zhi Pro Fac Upp Upp War Pro Res Qua Frg Res Acc Com Ac0 Combat Hostiles Destroyed 288 | . 1 3 14 34 2 13 8 3 . 25 . 12 . 11 3 1 . 4 5 5 28 17 13 38 28 20 Melee 19 | . . . . . . . . . . . . . . . . . . 1 . . 12 6 . . . . Guns 39 | . 1 3 2 28 1 4 . . . . . . . . . . . . . . . . . . . . Cannons 165 | . . . 8 4 1 9 7 3 . 12 . 4 . 2 3 1 . 1 5 5 11 11 8 29 21 20 AOE 51 | . . . 4 2 . . . . . 12 . 7 . 9 . . . . . . 4 . . 9 4 . Classes Destroyed 26 | 2 1 . 3 5 1 1 . . . . . 1 . 1 . . . 3 1 . 2 . 2 3 . . Worker 17 | . . . . 3 . . . . . 6 . . . . 1 . . . . . 1 . . 6 . . Builder 16 | . . . . 2 . . 10 1 . 2 . . . . . . . . . . . . . 1 . . Tunneler 7 | 5 . . . . . . . . . . . . . . 1 . . . . . . . . 1 . . Hauler 9 | . . . . 5 . . . . . 2 . . . . 1 . . . . . 1 . . . . . Recycler 20 | 1 . . . . . 1 9 . . 5 . . . . . . . . . . . . . 2 2 . Operator 2 | . . . . . . 1 . . . 1 . . . . . . . . . . . . . . . . Drone 3 | . . . . . . . . . . . . . . 2 . . . . . . . . . 1 . . Watcher 2 | . . . . . . . . . . . . . . . . . . . . . 1 . . 1 . . Swarmer 57 | . 1 3 1 8 . . . . . 11 . 4 . 5 . . . . 1 . 4 . . 10 9 . Saboteur 1 | . . . . . . . . . . . . . . . . . . 1 . . . . . . . . Grunt 70 | . . . 2 18 . 9 . . . 4 . 5 . 4 . . . 1 1 . 9 4 4 9 . . Brawler 1 | . . . . . . . . . . . . . . . . . . . . . . . . 1 . . Protector 2 | . . . . . . . . . . . . . . . . . . 1 . . . . . 1 . . Sentry 29 | . . . . 7 1 3 3 2 . 2 . 1 . . 1 . . . 1 3 3 1 . . 1 . Demolisher 3 | . . . . . . . . . . . . . . . . . . 1 . . . . 2 . . . Hunter 20 | . . . . 1 . . . . . 3 . 2 . . . . . . 2 2 2 . 2 4 2 . Programmer 47 | . . . . . 1 1 . 1 . 5 . . . . 2 1 . . . . 9 4 2 11 10 . Heavy 1 | . . . . . . . . . . . . . . . . . . . . . . . . 1 . . M Guard 2 | . . . . . . . . . . . . . . . . . . . . . . . . . 2 . Enhanced Grunt 9 | . . . . . . . . . . . . . . . . . . . . . . . . . . 9 Enhanced Hunter 6 | . . . . . . . . . . . . . . . . . . . . . . . . . . 6 Hotshot 8 | . . . . . . . . . . . . . . . . . . . . . . 8 . . . . Combat Programmer 2 | . . . . . . . . . . . . . . . . . . . . . . . . . 2 . Striker 2 | . . . . . . . . . . . . . . . . . . . . . . . 2 . . . Executioner 1 | . . . . . . . . . . . . . . . . . . . . . . . 1 . . . Fortress 1 | . . . . . . . . . . . . . . . . . . . . . 1 . . . . . Artisan 2 | . . . 2 . . . . . . . . . . . . . . . . . . . . . . . Subdweller 16 | . . . 11 . . . 5 . . . . . . . . . . . . . . . . . . . Samaritan 1 | . . . . . . . . . . . . 1 . . . . . . . . . . . . . . Tinkerer 1 | . . . . . . . . . . . . . . . . . . . 1 . . . . . . . Knight 1 | . . . . . . . . . . . . . . . . . . . . . . . . 1 . . Best Kill Streak 13 | 3 1 3 2 6 1 3 3 2 . 12 . 4 . 5 2 1 . 2 3 2 5 5 4 13 4 6 Combat Bots Only 10 | . 1 3 2 5 1 3 2 1 . 6 . 4 . 5 2 1 . 2 3 2 4 5 4 10 4 6 Max Kills in Single Turn 7 | 1 1 1 1 2 1 1 1 1 . 7 . 4 . 5 1 1 . 1 1 2 5 1 2 5 2 1 Gunslinging 1 | . . . . 1 . . . . . . . . . . . . . . . . . . . . . . Exploded 5 | . . . 1 1 . . . . . 4 . 4 . 5 . . . . . . 4 . . 4 2 . Melee 1 | . . . . . . . . . . . . . . . . . . 1 . . 1 1 . . . . Uniques/NPCs Destroyed 7 | . . . . . . . . . . . . . . . . . . . . . . . . . 2 5 MAIN.C Shell (-1/Command) MAIN.C (-1/Command) A8 (-1/Access_0) A6 (-1/Access_0) A5 (-1/Access_0) A4 (-1/Access_0) Architect (-1/Access_0) Combat | -11 -10 -10 -10 -8 -7 -7 -7 -5 -5 -5 -5 -5 -5 -4 -4 -4 -4 -4 -3 -3 -3 -3 -2 -1 -1 -1 -------- Run | Yrd Mat Min Sub Mat Fac Sto Rec Fac Was Fac Upp Upp Zhi Pro Fac Upp Upp War Pro Res Qua Frg Res Acc Com Ac0 Hostile Shots Fired 2946 | . 3 23 113 212 47 81 58 37 4 102 . 61 . 44 24 6 . 56 64 121 222 252 121 226 181 888 Missed 957 | . . 7 35 60 16 24 18 12 . 39 . 17 . 13 6 2 . 24 19 58 70 41 41 62 46 347 Hits 1989 | . 3 16 78 152 31 57 40 25 4 63 . 44 . 31 18 4 . 32 45 63 152 211 80 164 135 541 Melee 20 | . . . . . . . . . 4 . . . . . . . . 9 . . . . 1 3 . 3 Projectile 1969 | . 3 16 78 152 31 57 40 25 . 63 . 44 . 31 18 4 . 23 45 63 152 211 79 161 135 538 AOE 28 | . . . . . . . . . . . . . . . . . . 2 . . . . 10 . 15 1 Critical Strikes 129 | . . . 1 1 . 1 . 2 1 3 . 1 . 2 . . . 3 . . 11 14 5 5 8 71 Actively Blocked 36 | . . . . . . . . . . . . . . . . . . . . . . . 5 5 6 20 Part Disruptions 6 | . . . . . . 1 . . . . . . . . . . . . . . 1 1 . 1 2 . Damage Taken 34929 | . 23 131 1694 2008 224 697 440 511 162 1220 . 885 . 617 381 80 . 1101 826 1063 3352 2749 2082 2117 3506 9060 Core 3342 | . 9 14 220 343 38 44 50 42 . 87 . 79 . 34 40 18 . 79 65 103 298 274 125 314 368 698 Absorbed by Shields 11427 | . . . . . . . . . . . . . . . . . . . . . 136 818 117 1059 1124 8173 Reduced by Siege Mode 510 | . . . . . . . . . . . . . . . . . . . . . . . . . 445 65 Redirected to Core 92 | . . . . . . . . . . . . . . . . . . . . . 92 . . . . . Redirected to Shielding 74 | . . . . . . . . . . . . . . . . . . . . . . . . . . 74 Ignored by Resistances 5019 | . . . . 46 . . . . . . . . . . . . . . . . 187 2288 120 1086 1292 . Regen/Repaired (Parts) 12091 | . . . . . . . . 5 160 293 80 472 364 179 379 . . 340 686 597 2354 940 727 826 2028 1661 Core Remaining (%) 57 | 100 . . 2 37 . . 81 . . . . . . 75 . . . . 82 . . 40 91 . . 7 Volleys Fired 1110 | 16 8 8 80 116 18 39 71 19 . 53 7 33 5 20 27 10 9 25 31 31 44 35 31 96 118 160 Largest 4 | 2 2 2 2 4 4 4 2 2 . 2 1 3 1 1 2 1 1 2 1 1 1 1 2 1 1 1 Hottest 529 | 80 80 80 160 120 144 210 112 142 . 210 98 308 98 112 176 98 98 176 78 90 90 64 124 96 150 529 Shots Fired 1568 | 32 16 16 108 316 36 102 144 28 . 56 8 46 4 21 32 10 9 30 31 31 44 35 43 96 116 158 Gun 437 | 32 16 16 34 261 20 44 . . . . . . . . . . . 1 . . . 1 12 . . . Cannon 1096 | . . . 62 52 16 58 144 28 . 53 8 42 4 17 32 10 9 27 31 31 43 34 31 93 113 158 Launcher 30 | . . . 9 3 . . . . . 3 . 4 . 4 . . . . . . 1 . . 3 3 . Special 5 | . . . 3 . . . . . . . . . . . . . . 2 . . . . . . . . Kinetic 609 | . . . 45 235 34 35 1 19 . 6 . . . . . . . 1 31 22 41 . . 89 50 . Thermal 835 | 32 16 16 63 16 2 67 143 9 . 47 8 42 4 17 32 10 9 27 . 9 2 8 31 4 63 158 Explosive 18 | . . . . . . . . . . 3 . 4 . 4 . . . . . . 1 . . 3 3 . Electromagnetic 65 | . . . . 65 . . . . . . . . . . . . . . . . . . . . . . Entropic 39 | . . . . . . . . . . . . . . . . . . . . . . 27 12 . . . Robot Hit Streak 83 | 7 6 2 12 8 6 7 19 9 . 8 . 8 8 10 6 4 . 11 7 7 13 21 16 46 83 8 Robot Miss Streak 19 | 2 1 3 2 19 5 4 5 6 . 8 . 5 . 5 1 . . 3 2 2 2 2 2 4 1 6 Penetration Max 1 | . . . . . . . . . . . . . . . . . . . . 1 . . . 1 . 1 Secondary Targets 5 | . . 1 . 4 . . . . . . . . . . . . . . . . . . . . . . Max Gunslinging Chain 1 | . . 1 . 1 . . . . . . . . . . . . . . . . . . . . . . Capacitor 53 | . . . . . . . . . . . . . . . . . . . . . . . . . 53 . Shots Hit Robots 1059 | 22 12 7 73 181 14 64 87 18 . 38 . 29 4 9 15 3 . 18 20 12 66 57 38 89 87 96 Core Hits 643 | 7 2 4 30 92 5 40 31 5 . 90 . 38 2 26 8 1 . 7 9 10 37 27 23 70 42 37 Critical Kills 8 | . . . . . . . . . . . . . . . . . . . . . . . 5 . 3 . Critical Parts Destroyed 1 | . . . . 1 . . . . . . . . . . . . . . . . . . . . . . Critical Strikes 25 | . . . . 2 . . . . . . . . . . . . . . . 1 4 . 6 9 3 . Burn 1 | . . . . . . . . . . . . . . . . . . . . . . . 1 . . . Meltdown 8 | . . . . . . . . . . . . . . . . . . . . . . . 5 . 3 . Destroy 1 | . . . . 1 . . . . . . . . . . . . . . . . . . . . . . Blast 13 | . . . . 1 . . . . . . . . . . . . . . . 1 2 . . 9 . . Sever 2 | . . . . . . . . . . . . . . . . . . . . . 2 . . . . . Melee Attacks 91 | . . . . . . . . . . . . . . . . . . . . . 58 33 . . . . Kinetic 3 | . . . . . . . . . . . . . . . . . . . . . 3 . . . . . Impact . | . . . . . . . . . . . . . . . . . . . . . . . . . . . Slashing 88 | . . . . . . . . . . . . . . . . . . . . . 55 33 . . . . Piercing . | . . . . . . . . . . . . . . . . . . . . . . . . . . . Sneak Attacks 4 | . . . . . . . . . . . . . . . . . . . . . 3 1 . . . . Combat Hostiles 2 | . . . . . . . . . . . . . . . . . . . . . 2 . . . . . Follow-up Attacks . | . . . . . . . . . . . . . . . . . . . . . . . . . . . Damage Inflicted 91069 | 251 142 102 2217 3630 302 1506 2414 850 . 4111 . 1595 145 1269 637 171 . 647 860 557 5214 5451 2991 9372 17254 29381 Guns 4715 | 249 142 75 464 2775 189 525 . . . . . . . . . . . . . . . . 296 . . . Cannons 73577 | . . . 1071 512 113 978 2399 850 . 1710 . 874 145 312 637 171 . 647 860 557 1727 3521 2695 7815 16602 29381 Explosions 7621 | . . . 669 315 . . . . . 2388 . 721 . 957 . . . . . . 510 . . 1523 538 . Melee 4907 | . . . . . . . . . . . . . . . . . . . . . 2977 1930 . . . . Ramming 249 | 2 . 27 13 28 . 3 15 . . 13 . . . . . . . . . . . . . 34 114 . Kinetic 24766 | . . . 1153 2683 264 351 44 621 . 301 . . . . . . . . 860 557 1818 . . 7570 8544 . Thermal 51798 | 249 142 75 1051 268 38 1152 2355 229 . 2362 . 874 145 312 637 171 . 647 . . . 712 2695 245 8058 29381 Explosive 5377 | . . . . . . . . . . 1128 . 721 . 957 . . . . . . 510 . . 1523 538 . Electromagnetic 958 | . . . . 651 . . . . . 307 . . . . . . . . . . . . . . . . Impact . | . . . . . . . . . . . . . . . . . . . . . . . . . . . Slashing 4816 | . . . . . . . . . . . . . . . . . . . . . 2886 1930 . . . . Piercing . | . . . . . . . . . . . . . . . . . . . . . . . . . . . Entropic 3105 | . . . . . . . . . . . . . . . . . . . . . . 2809 296 . . . Highest Corruption 22 | . . . . . . 2 2 2 12 15 15 15 15 15 3 3 . . . . 15 22 1 5 15 6 Average Corruption 9 | . . . . . . 2 2 1 10 12 15 15 15 15 2 2 . . . . 11 17 1 3 9 3 Corruption Purged 19 | . . . . . . . . . . . . . . . . 4 . . . . . . . . 15 . Corruption Blocked 1 | . . . . . . . . . . . . . . . . . . . 1 . . . . . . . Effects 554 | . . . . . . 11 62 1 5 50 58 118 23 60 2 2 . . . . 48 26 3 12 56 17 Message Errors 144 | . . . . . . 4 13 . 2 13 14 34 10 10 1 1 . . . . 13 4 . 5 15 5 Matter Fused 127 | . . . . . . 4 12 . . 14 11 26 3 16 . 1 . . . . 16 7 . . 12 5 Heat Flow Errors 67 | . . . . . . 2 7 . 1 3 11 12 4 5 1 . . . . . . 5 1 2 10 3 Energy Discharges 89 | . . . . . . . 12 . . 10 12 13 3 11 . . . . . . 10 3 1 5 7 2 Parts Rejected 4 | . . . . . . . . . . 1 . 1 . . . . . . . . 1 . . . 1 . Parts Fused 7 | . . . . . . . . . 2 . . . 1 2 . . . . . . . 1 . . 1 . Data Loss (minor) 60 | . . . . . . 1 9 . . 5 5 20 . 7 . . . . . . 5 3 . . 5 . Data Loss (major) 18 | . . . . . . . 2 . . 2 2 4 1 5 . . . . . . 1 . . . 1 . Misfires 16 | . . . . . . . 5 . . . 2 6 . 1 . . . . . . . 1 1 . . . Alerts 10 | . . . . . . . 1 1 . 1 . . . 2 . . . . . . 2 1 . . 2 . Misdirections 1 | . . . . . . . . . . . . . . 1 . . . . . . . . . . . . Weapon Failures 11 | . . . . . . . 1 . . 1 1 2 1 . . . . . . . . 1 . . 2 2 Overload Shots 2 | . . . . . . . . . . . . . . . . . . . . . . . . . 2 . Overflow Damage 7519 | . . . 33 . . 3 97 51 . 291 . . . 35 12 3 . 18 11 . 330 229 77 511 2289 3529 Projectiles 6751 | . . . . . . 3 97 51 . 30 . . . 35 12 3 . 18 11 . 116 97 77 406 2266 3529 Explosions 417 | . . . 33 . . . . . . 261 . . . . . . . . . . 18 . . 105 . . Melee 351 | . . . . . . . . . . . . . . . . . . . . . 196 132 . . 23 . Knockbacks 102 | . . . 6 2 2 . 1 1 . 2 . . . . . . . . 4 1 14 . . 42 27 . Impact 2 | . . . 1 . . . . . . . . . . . . . . . . . . . . . 1 . Kinetic 98 | . . . 5 2 2 . 1 1 . 2 . . . . . . . . 4 1 12 . . 42 26 . Secondary 2 | . . . . . . . . . . . . . . . . . . . . . 2 . . . . . Self-Inflicted Damage 591 | . . . 164 31 . . . . . 94 . 79 . 24 . . . . . . . . . 199 . . Shots 20 | . . . 5 2 . . . . . 5 . 4 . 1 . . . . . . . . . 3 . . Rammed 23 | 1 . 8 7 . . 1 2 . . . . . . . . . . . . . . . . 1 3 . Targets Rammed 31 | 1 . 8 7 3 . 2 2 . . 2 . . . . . . . . . . . . . 3 3 . Kicked 5 | . . . . 3 . . . . . 2 . . . . . . . . . . . . . . . . Crushed 3 | . . . . . . 1 . . . . . . . . . . . . . . . . . 2 . . Highest Temperature 737 | 21 108 126 56 339 27 259 274 270 157 233 260 389 165 231 96 . . 300 . . 375 197 69 221 335 737 Average Temperature 93 | 7 47 59 18 78 15 71 67 127 80 71 89 106 46 70 34 . . 128 . . 216 78 35 117 90 146 Received Heat Transfer 5142 | . . . 180 873 6 321 117 9 . 81 . 96 . 203 18 . . 106 57 63 943 1160 17 289 572 31 Effects 23 | . . . . . . 2 2 . . . . 2 . . . . . . . . 3 . . . 3 11 Shutdowns 2 | . . . . . . . . . . . . 1 . . . . . . . . . . . . . 1 Energy Bleed 2 | . . . . . . . 1 . . . . . . . . . . . . . . . . . . 1 Interference 10 | . . . . . . 2 1 . . . . . . . . . . . . . 3 . . . 3 1 Short Circuit 2 | . . . . . . . . . . . . 1 . . . . . . . . . . . . . 1 Damage (major) 7 | . . . . . . . . . . . . . . . . . . . . . . . . . . 7 Siege Activations 4 | . . . . . . . . . . . . . . . . . . . . . . . . . 3 1 Total Turns 584 | . . . . . . . . . . . . . . . . . . . . . . . . . 526 58 Longest Duration 464 | . . . . . . . . . . . . . . . . . . . . . . . . . 464 58 Martial Activations . | . . . . . . . . . . . . . . . . . . . . . . . . . . . Shielding Activations . | . . . . . . . . . . . . . . . . . . . . . . . . . . . Robots Disrupted 2 | . . . . 1 . . . . . 1 . . . . . . . . . . . . . . . . Combat Hostiles . | . . . . . . . . . . . . . . . . . . . . . . . . . . . Robots Corrupted 2 | . . . . . . . . . . . . . . . . . . . . . . . . . 2 . Combat Hostiles . | . . . . . . . . . . . . . . . . . . . . . . . . . . . Parts Fried 7 | . . . . . . . . . . 1 . . . . . . . . . . . . . . 6 . Impact Corruptions 2 | . . . . . . . . . . . . . . . . . . . . . . . . . 2 . Robots Melted 12 | . . . . . . . 1 . . 1 . 1 . . . . . 1 . . . . 5 . 3 . Combat Hostiles 12 | . . . . . . . 1 . . 1 . 1 . . . . . 1 . . . . 5 . 3 . Parts Melted 44 | . . . 1 . . 2 3 . . 3 . 5 . . 1 . . 6 . . . . 14 1 8 . Heat Transferred 21723 | 550 325 175 1374 568 74 2029 3182 259 . 3666 . 1500 200 350 750 150 . 750 . . . 407 1887 185 905 2437 Parts Sabotaged 4 | . . . . . . . . . . . . . . . . . . 4 . . . . . . . . Parts Stolen . | . . . . . . . . . . . . . . . . . . . . . . . . . . . Parts Stripped 18 | . . . . . . . . . . . . . . . . . . . . . 18 . . . . . Power Chain Reactions 1 | . . . . 1 . . . . . . . . . . . . . . . . . . . . . . Alert | -11 -10 -10 -10 -8 -7 -7 -7 -5 -5 -5 -5 -5 -5 -4 -4 -4 -4 -4 -3 -3 -3 -3 -2 -1 -1 -1 ------- Run | Yrd Mat Min Sub Mat Fac Sto Rec Fac Was Fac Upp Upp Zhi Pro Fac Upp Upp War Pro Res Qua Frg Res Acc Com Ac0 Maximum Alert Level 4 | . . . . 2 . . . 1 . 2 . . . . . . . . . . 1 2 2 4 4 . Low Security (%) 57 | 100 100 100 . 79 100 100 100 82 100 51 . . . . 100 . . . . 100 37 19 42 . . . Level 1 12 | . . . . 17 . . . 17 . 4 . . . . . . . . . . 62 75 47 36 . . Level 2 3 | . . . . 3 . . . . . 43 . . . . . . . . . . . 4 9 13 . . Level 3 2 | . . . . . . . . . . . . . . . . . . . . . . . . 10 7 . Level 4 24 | . . . . . . . . . . . . . . . . . . . . . . . . 39 92 . Level 5 . | . . . . . . . . . . . . . . . . . . . . . . . . . . . High Security . | . . . . . . . . . . . . . . . . . . . . . . . . . . . Max Security . | . . . . . . . . . . . . . . . . . . . . . . . . . . . Peak Influence 1371 | 10 20 60 . 406 179 154 112 232 38 692 . . . . 48 . . . . 151 397 413 445 1371 1220 . Initial 825 | . . . . 1 179 . 52 232 38 . . . . . . . . . . 13 44 198 186 261 825 . Average 197 | 1 3 6 . 154 77 58 31 159 15 325 . . . . 8 . . . . 64 220 282 223 817 1047 . Influence Increases 9874 | 30 20 128 80 1146 81 466 374 365 . 1156 . 280 10 210 142 30 . 80 110 261 857 459 611 1451 1012 515 Destroy 0b10 Robot/C 4920 | . 20 100 60 680 40 260 60 60 . 500 . 240 . 180 60 20 . 60 100 100 560 340 260 740 480 . Destroy 0b10 Robot/NC 435 | 30 . . . 50 . 10 115 5 . 80 . . 10 10 15 . . 5 . . 15 . . 60 30 . Destroy Leader 932 | . . 20 20 160 20 80 . 20 . 104 . 40 . 20 22 10 . . 10 40 64 60 60 122 60 . Allied During Kill 8 | . . 8 . . . . . . . . . . . . . . . . . . . . . . . . Successful Hack 237 | . . . . 20 19 28 29 . . 22 . . . . 15 . . . . 18 4 . . 7 75 . Select Force Hacks 90 | . . . . . . . 90 . . . . . . . . . . . . . . . . . . . Disable Machine 765 | . . . . 45 . 60 30 15 . 225 . . . . . . . . . 15 120 15 15 75 60 90 Anti-Garrison Action 200 | . . . . . . . . . . . . . . . . . . . . . . . 150 . 50 . Destroy Structure 1637 | . . . . 56 2 13 50 50 . 210 . . . . 30 . . . . 58 34 14 21 447 242 410 Advance Influence 200 | . . . . . . . . 200 . . . . . . . . . . . . . . . . . . Partial Spotted 45 | . . . . . . . . . . 15 . . . . . . . . . . . 15 . . . 15 Lose Combat Pursuer 405 | . . . . 135 . 15 . 15 . . . . . . . . . 15 . 30 60 15 105 . 15 . Influence Decreases 9429 | 30 20 82 123 753 477 330 432 334 109 466 690 246 44 210 142 30 . 49 121 202 582 480 507 598 843 1529 Entered New Map 3211 | . . . 25 2 217 . 84 46 71 . 256 . 34 . . . . . 31 7 35 156 147 176 465 1459 Time Decay 5757 | 30 20 82 58 651 260 300 348 278 38 363 434 246 10 210 134 30 . 49 90 185 537 294 350 392 368 . Lost Part 338 | . . . 40 90 . 30 . 10 . 10 . . . . 8 . . . . 10 10 30 10 30 10 50 Lost Ally 30 | . . . . 10 . . . . . . . . . . . . . . . . . . . . . 20 Purge Threat 93 | . . . . . . . . . . 93 . . . . . . . . . . . . . . . . Squads Dispatched 44 | . . 1 . 5 2 3 . 2 . 5 . . . . 1 . . . . 2 6 2 1 10 4 . Investigation 6 | . . 1 . 2 . 1 . 1 . . . . . . . . . . . 1 . . . . . . Extermination 18 | . . . . . 1 1 . 1 . 2 . . . . 1 . . . . 1 4 2 . 3 2 . Reinforcement 13 | . . . . 3 1 1 . . . 3 . . . . . . . . . . 2 . 1 2 . . Assault 4 | . . . . . . . . . . . . . . . . . . . . . . . . 2 2 . Garrison 3 | . . . . . . . . . . . . . . . . . . . . . . . . 3 . . Intercept . | . . . . . . . . . . . . . . . . . . . . . . . . . . . Searches Triggered . | . . . . . . . . . . . . . . . . . . . . . . . . . . . Construction Impeded 2 | . . . . . . 1 . . . 1 . . . . . . . . . . . . . . . . Haulers Reinforced 4 | . . . . . . . . . . 2 . . . . . . . . . . 1 . 1 . . . Active Scanning Responses . | . . . . . . . . . . . . . . . . . . . . . . . . . . . Cargo Convoy Interrupts . | . . . . . . . . . . . . . . . . . . . . . . . . . . . Stealth | -11 -10 -10 -10 -8 -7 -7 -7 -5 -5 -5 -5 -5 -5 -4 -4 -4 -4 -4 -3 -3 -3 -3 -2 -1 -1 -1 --------- Run | Yrd Mat Min Sub Mat Fac Sto Rec Fac Was Fac Upp Upp Zhi Pro Fac Upp Upp War Pro Res Qua Frg Res Acc Com Ac0 Distress Signals 45 | . 1 . . 6 . . 1 . . 2 . . . . . . . 1 . . 3 2 . 2 27 . Communications Jammed 3 | . . . . . . . . . . 3 . . . . . . . . . . . . . . . . Distress Signals 3 | . . . . . . . . . . 3 . . . . . . . . . . . . . . . . Times Spotted 497 | . 3 5 26 62 3 18 8 6 6 47 . 15 . 8 5 1 . 55 7 12 38 35 28 40 31 38 Peak Tracking Total 15 | . 3 3 3 8 1 3 2 2 6 6 . 4 . 5 2 1 . 15 3 4 5 11 7 7 4 7 Tactical Retreats 18 | . . . 1 6 . 1 . 1 . . . . . . . . . 1 . 2 1 1 3 . 1 . Traps | -11 -10 -10 -10 -8 -7 -7 -7 -5 -5 -5 -5 -5 -5 -4 -4 -4 -4 -4 -3 -3 -3 -3 -2 -1 -1 -1 ------- Run | Yrd Mat Min Sub Mat Fac Sto Rec Fac Was Fac Upp Upp Zhi Pro Fac Upp Upp War Pro Res Qua Frg Res Acc Com Ac0 Traps Triggered 12 | . . . . 2 2 1 . 1 . 1 . . . . . . . . . 1 . 1 . 1 2 . Indirectly . | . . . . . . . . . . . . . . . . . . . . . . . . . . . Trap Hack Attempts . | . . . . . . . . . . . . . . . . . . . . . . . . . . . Triggered . | . . . . . . . . . . . . . . . . . . . . . . . . . . . Disarmed . | . . . . . . . . . . . . . . . . . . . . . . . . . . . Reprogrammed . | . . . . . . . . . . . . . . . . . . . . . . . . . . . Reused . | . . . . . . . . . . . . . . . . . . . . . . . . . . . Traps Extracted . | . . . . . . . . . . . . . . . . . . . . . . . . . . . Installed . | . . . . . . . . . . . . . . . . . . . . . . . . . . . Triggered . | . . . . . . . . . . . . . . . . . . . . . . . . . . . Machines | -11 -10 -10 -10 -8 -7 -7 -7 -5 -5 -5 -5 -5 -5 -4 -4 -4 -4 -4 -3 -3 -3 -3 -2 -1 -1 -1 ---------- Run | Yrd Mat Min Sub Mat Fac Sto Rec Fac Was Fac Upp Upp Zhi Pro Fac Upp Upp War Pro Res Qua Frg Res Acc Com Ac0 Machines Disabled 61 | . . . 1 3 . 4 2 1 . 15 . . . . . 1 . 2 1 1 8 3 2 5 6 6 Max in Single Turn 7 | . . . 1 1 . 1 1 1 . 7 . . . . . 1 . 1 1 1 2 2 1 2 2 1 Garrison Access 3 | . . . . . . . . 1 . . . . . . . . . . . . . . 2 . . . Phase Generator 1 | . . . . . . . . . . . . . . . . . . . . . . . . . 1 . Machines Repaired . | . . . . . . . . . . . . . . . . . . . . . . . . . . . Machines Dismantled . | . . . . . . . . . . . . . . . . . . . . . . . . . . . Machines Sabotaged . | . . . . . . . . . . . . . . . . . . . . . . . . . . . Overloaded Fab Kills . | . . . . . . . . . . . . . . . . . . . . . . . . . . . Hacking | -11 -10 -10 -10 -8 -7 -7 -7 -5 -5 -5 -5 -5 -5 -4 -4 -4 -4 -4 -3 -3 -3 -3 -2 -1 -1 -1 --------- Run | Yrd Mat Min Sub Mat Fac Sto Rec Fac Was Fac Upp Upp Zhi Pro Fac Upp Upp War Pro Res Qua Frg Res Acc Com Ac0 Machines Accessed 79 | . 1 1 1 11 5 6 12 4 . 7 . . 4 . 4 . . 2 . 3 6 3 2 4 3 . Terminals 51 | . 1 . . 9 4 6 6 2 . 5 . . . . 2 . . . . 1 5 3 . 4 3 . Fabricators 4 | . . . . . 1 . . 1 . 1 . . . . 1 . . . . . . . . . . . Repair Stations . | . . . . . . . . . . . . . . . . . . . . . . . . . . . Recycling Units 7 | . . . . 1 . . 5 . . . . . . . 1 . . . . . . . . . . . Scanalyzers 4 | . . . . 1 . . . . . 1 . . . . . . . . . 1 1 . . . . . Garrison Access 4 | . . . . . . . . 1 . . . . . . . . . . . 1 . . 2 . . . Total Hacks 177 | . 2 1 1 22 8 14 23 8 . 20 . . 17 . 13 . . 7 . 4 12 6 3 6 10 . Successful 79 | . 1 1 1 5 6 2 13 1 . 8 . . 17 . 5 . . 7 . 2 1 2 1 2 4 . Failed 98 | . 1 . . 17 2 12 10 7 . 12 . . . . 8 . . . . 2 11 4 2 4 6 . Catastrophic 29 | . . . . 8 . 3 2 5 . 2 . . . . 3 . . . . 1 1 2 1 1 . . Database Lockouts . | . . . . . . . . . . . . . . . . . . . . . . . . . . . Manual 55 | . 2 . . 15 2 1 19 . . 8 . . . . 2 . . . . . 3 3 . . . . Terminals 115 | . 2 . . 19 7 14 12 3 . 15 . . . . 9 . . . . 2 10 6 . 6 10 . Fabricators 7 | . . . . . 1 . . 2 . 3 . . . . 1 . . . . . . . . . . . Repair Stations . | . . . . . . . . . . . . . . . . . . . . . . . . . . . Recycling Units 14 | . . . . 2 . . 9 . . . . . . . 3 . . . . . . . . . . . Scanalyzers 6 | . . . . 1 . . . . . 2 . . . . . . . . . 1 2 . . . . . Garrison Access 7 | . . . . . . . . 3 . . . . . . . . . . . 1 . . 3 . . . Terminal Hacks 58 | . 1 1 1 3 5 2 4 . . 6 . . 17 . 2 . . 7 . 1 1 1 . 2 4 . Record 5 | . . . . . . . . . . . . . 5 . . . . . . . . . . . . . Part Schematic 4 | . . . . . . . . . . . . . 4 . . . . . . . . . . . . . Robot Analysis 5 | . . . . . . . 1 . . . . . 4 . . . . . . . . . . . . . Prototype ID Bank 14 | . . . . 1 . 1 1 . . 1 . . 4 . . . . 6 . . . . . . . . Open Door 5 | . . 1 . . . . . . . . . . . . . . . 1 . . . . . 2 1 . Level Access Points 1 | . . . . . . . . . . . . . . . . . . . . . . . . . 1 . Branch Access Points 5 | . . . . 1 1 . . . . 1 . . . . 1 . . . . 1 . . . . . . Emergency Access Points 2 | . . . . . . . . . . 1 . . . . . . . . . . . . . . 1 . Alert Level 1 | . . . . . 1 . . . . . . . . . . . . . . . . . . . . . Unreport Threat 1 | . . . . . . . . . . 1 . . . . . . . . . . . . . . . . Locate Traps 3 | . . . . . 1 1 . . . . . . . . . . . . . . 1 . . . . . Dispatch Records 1 | . . . . . . . . . . . . . . . . . . . . . . . . . 1 . Hauler Manifests 3 | . 1 . . . 1 . . . . 1 . . . . . . . . . . . . . . . . Registered Components 3 | . . . . 1 1 . . . . . . . . . 1 . . . . . . . . . . . Zone Layout 1 | . . . . . . . . . . 1 . . . . . . . . . . . . . . . . Proto ID Catalog 2 | . . . 1 . . . . . . . . . . . . . . . . . . 1 . . . . Release Object 2 | . . . . . . . 2 . . . . . . . . . . . . . . . . . . . Fabricator Hacks 2 | . . . . . 1 . . . . . . . . . 1 . . . . . . . . . . . Network Status 2 | . . . . . 1 . . . . . . . . . 1 . . . . . . . . . . . Repair Station Hacks . | . . . . . . . . . . . . . . . . . . . . . . . . . . . Recycling Unit Hacks 2 | . . . . 1 . . . . . . . . . . 1 . . . . . . . . . . . Retrieve Components 2 | . . . . 1 . . . . . . . . . . 1 . . . . . . . . . . . Scanalyzer 2 | . . . . 1 . . . . . . . . . . . . . . . 1 . . . . . . Insert Component 1 | . . . . . . . . . . . . . . . . . . . . 1 . . . . . . Retrieve Study 1 | . . . . 1 . . . . . . . . . . . . . . . . . . . . . . Garrison Access Hacks 2 | . . . . . . . . 1 . . . . . . . . . . . . . . 1 . . . Seal Access 2 | . . . . . . . . 1 . . . . . . . . . . . . . . 1 . . . Unauthorized Hacks 13 | . . . . . . . 9 . . 2 . . . . 1 . . . . . . 1 . . . . Terminals 8 | . . . . . . . 5 . . 2 . . . . . . . . . . . 1 . . . . Track 2 | . . . . . . . . . . 1 . . . . . . . . . . . 1 . . . . Botnet 2 | . . . . . . . 1 . . 1 . . . . . . . . . . . . . . . . Skim 4 | . . . . . . . 4 . . . . . . . . . . . . . . . . . . . Fabricators . | . . . . . . . . . . . . . . . . . . . . . . . . . . . Repair Stations . | . . . . . . . . . . . . . . . . . . . . . . . . . . . Recycling Units 5 | . . . . . . . 4 . . . . . . . 1 . . . . . . . . . . . Recyclers 1 | . . . . . . . . . . . . . . . 1 . . . . . . . . . . . Mask 1 | . . . . . . . 1 . . . . . . . . . . . . . . . . . . . Tunnel 3 | . . . . . . . 3 . . . . . . . . . . . . . . . . . . . Scanalyzers . | . . . . . . . . . . . . . . . . . . . . . . . . . . . Garrison Access . | . . . . . . . . . . . . . . . . . . . . . . . . . . . Data Cores Recovered 2 | . . . . . . 1 . . . 1 . . . . . . . . . . . . . . . . Used . | . . . . . . . . . . . . . . . . . . . . . . . . . . . Hacking Detections 58 | . 1 . . 10 2 6 7 3 . 7 . . . . 3 . . . . 3 6 3 1 4 2 . Full Trace Events 3 | . . . . . . 1 1 1 . . . . . . . . . . . . . . . . . . Feedback Events . | . . . . . . . . . . . . . . . . . . . . . . . . . . . Feedback Blocked . | . . . . . . . . . . . . . . . . . . . . . . . . . . . Robot Schematics Acquired . | . . . . . . . . . . . . . . . . . . . . . . . . . . . Robots Built . | . . . . . . . . . . . . . . . . . . . . . . . . . . . Authchips . | . . . . . . . . . . . . . . . . . . . . . . . . . . . Time . | . . . . . . . . . . . . . . . . . . . . . . . . . . . Total Robot Build Rating . | . . . . . . . . . . . . . . . . . . . . . . . . . . . Part Schematics Acquired 4 | . . . . . . . . . . . . . 4 . . . . . . . . . . . . . Parts Built . | . . . . . . . . . . . . . . . . . . . . . . . . . . . Authchips . | . . . . . . . . . . . . . . . . . . . . . . . . . . . Time . | . . . . . . . . . . . . . . . . . . . . . . . . . . . Total Part Build Rating . | . . . . . . . . . . . . . . . . . . . . . . . . . . . Part Studies Acquired 1 | . . . . 1 . . . . . . . . . . . . . . . . . . . . . . Parts Repaired . | . . . . . . . . . . . . . . . . . . . . . . . . . . . Time . | . . . . . . . . . . . . . . . . . . . . . . . . . . . Parts Recycled . | . . . . . . . . . . . . . . . . . . . . . . . . . . . Recycled Matter . | . . . . . . . . . . . . . . . . . . . . . . . . . . . Retrieved Matter . | . . . . . . . . . . . . . . . . . . . . . . . . . . . Retrieved Components 2 | . . . . 2 . . . . . . . . . . . . . . . . . . . . . . Parts Scanalyzed . | . . . . . . . . . . . . . . . . . . . . . . . . . . . Part Schematics Acquired . | . . . . . . . . . . . . . . . . . . . . . . . . . . . Parts Damaged . | . . . . . . . . . . . . . . . . . . . . . . . . . . . Bothacking | -11 -10 -10 -10 -8 -7 -7 -7 -5 -5 -5 -5 -5 -5 -4 -4 -4 -4 -4 -3 -3 -3 -3 -2 -1 -1 -1 ------------ Run | Yrd Mat Min Sub Mat Fac Sto Rec Fac Was Fac Upp Upp Zhi Pro Fac Upp Upp War Pro Res Qua Frg Res Acc Com Ac0 Used RIF Installer . | . . . . . . . . . . . . . . . . . . . . . . . . . . . Robots Hacked 1 | . . . . . . . . . . . . . . . . . . 1 . . . . . . . . Non-combat . | . . . . . . . . . . . . . . . . . . . . . . . . . . . Combat 1 | . . . . . . . . . . . . . . . . . . 1 . . . . . . . . Robot Hacks Applied 1 | . . . . . . . . . . . . . . . . . . 1 . . . . . . . . parse_system 1 | . . . . . . . . . . . . . . . . . . 1 . . . . . . . . Relay Couplers Released 1 | . . . . . . . . . . . . . . . . . . . . . . . 1 . . . Machine Destruction 1 | . . . . . . . . . . . . . . . . . . . . . . . 1 . . . Fabnet Peak Effective % . | . . . . . . . . . . . . . . . . . . . . . . . . . . . Robots Rewired 1 | . . . . 1 . . . . . . . . . . . . . . . . . . . . . . Allies Hacked . | . . . . . . . . . . . . . . . . . . . . . . . . . . . Hacks Repelled . | . . . . . . . . . . . . . . . . . . . . . . . . . . . Allies | -11 -10 -10 -10 -8 -7 -7 -7 -5 -5 -5 -5 -5 -5 -4 -4 -4 -4 -4 -3 -3 -3 -3 -2 -1 -1 -1 -------- Run | Yrd Mat Min Sub Mat Fac Sto Rec Fac Was Fac Upp Upp Zhi Pro Fac Upp Upp War Pro Res Qua Frg Res Acc Com Ac0 Total Allies 4 | . . 3 . 1 . . . . . . . . . . . . . . . . . . . . . . Largest Group 3 | . . 3 3 1 . . . . . . . . . . . . . . . . . . . . . . Highest-Rated Group 40 | . . 40 40 10 . . . . . . . . . . . . . . . . . . . . . . Highest-Rated Ally 16 | . . 16 16 10 . . . . . . . . . . . . . . . . . . . . . . Total Orders 5 | . . . . 1 . . . . . . . . . . . . . . . . . 1 . 3 . . DROP 1 | . . . . 1 . . . . . . . . . . . . . . . . . . . . . . RETURN 4 | . . . . . . . . . . . . . . . . . . . . . . 1 . 3 . . Ally Attacks 50 | . . 9 41 . . . . . . . . . . . . . . . . . . . . . . . Total Damage 383 | . . 109 274 . . . . . . . . . . . . . . . . . . . . . . . Kills 8 | . . 2 6 . . . . . . . . . . . . . . . . . . . . . . . Allies Corrupted . | . . . . . . . . . . . . . . . . . . . . . . . . . . . Allies Melted 2 | . . . . . . . . . . . . . . . . . . 1 . . . . 1 . . . Intel | -11 -10 -10 -10 -8 -7 -7 -7 -5 -5 -5 -5 -5 -5 -4 -4 -4 -4 -4 -3 -3 -3 -3 -2 -1 -1 -1 ------- Run | Yrd Mat Min Sub Mat Fac Sto Rec Fac Was Fac Upp Upp Zhi Pro Fac Upp Upp War Pro Res Qua Frg Res Acc Com Ac0 Active Infowar (turns) 23846 | 92 125 1009 2451 1398 664 714 1810 508 114 1291 1369 2682 219 1413 699 710 772 1280 2511 567 961 . . 179 . 308 Sensors 179 | . . . . . . . . . . . . . . . . . . . . . . . . 179 . . IFF 13086 | . . . . . . . . . . . 1367 2587 219 1413 699 710 772 1280 2511 567 961 . . . . . Seismic 11818 | 92 125 1009 2451 1398 664 714 1810 508 114 1291 1369 273 . . . . . . . . . . . . . . Triangulation 308 | . . . . . . . . . . . . . . . . . . . . . . . . . . 308 Jamming 3604 | . . . . . . . . . . 85 1369 642 . . . 1 770 88 526 67 56 . . . . . Robot Analysis Total 5 | . . . . . . . 1 . . . . . 4 . . . . . . . . . . . . . Derelict Logs Recovered 8 | . . 1 1 . . . . . . . . 1 . 2 . 2 1 . . . . . . . . . Drone Launches 14 | . . . . . . . . . . . . . . . . . . . . . . 3 . 5 . 6 Drone Recoveries 11 | . . . . . . . . . . . . . . . . . . . . . . 3 . 4 . 4 Exploration | -11 -10 -10 -10 -8 -7 -7 -7 -5 -5 -5 -5 -5 -5 -4 -4 -4 -4 -4 -3 -3 -3 -3 -2 -1 -1 -1 ------------- Run | Yrd Mat Min Sub Mat Fac Sto Rec Fac Was Fac Upp Upp Zhi Pro Fac Upp Upp War Pro Res Qua Frg Res Acc Com Ac0 Turns Passed 38575 | 240 125 1009 3171 2595 664 857 4526 603 114 1291 1369 2822 484 1521 699 710 772 1280 2511 567 1691 649 780 926 5623 976 Spaces Moved 20398 | 111 63 601 1900 1117 308 447 1901 403 104 681 603 797 147 801 338 543 602 837 989 312 956 322 511 355 3885 764 Core 119 | 3 . . 66 6 . . 37 . . . . . . . . . . . . . . . . . . 7 Treads 8503 | 108 63 601 1773 . 105 447 816 41 . . . 650 110 . 93 543 602 629 . . . . . 151 1771 . Legs 2867 | . . . . 1059 203 . . . . 277 603 147 . . . . . 208 370 . . . . . . . Wheels 717 | . . . 61 52 . . 604 . . . . . . . . . . . . . . . . . . . Hover 5667 | . . . . . . . 444 356 . . . . . . . . . . . 3 956 322 511 204 2114 757 Flight 2525 | . . . . . . . . 6 104 404 . . 37 801 245 . . . 619 309 . . . . . . Fastest Speed 50 | 50 160 160 50 80 156 145 84 125 77 77 209 209 178 178 124 124 124 124 126 123 66 62 62 120 93 50 Average Speed 151 | 157 160 160 147 184 180 148 161 127 100 160 209 336 314 178 183 124 124 131 178 151 118 112 124 135 114 72 Slowest Speed 1000 | 160 160 160 260 260 193 156 1000 173 125 219 209 457 363 178 286 124 124 206 206 152 177 120 174 202 189 93 Overloaded Moves 112 | . . . . . . . . . . . . . . . . . . . . . . 39 73 . . . Propulsion Burnouts . | . . . . . . . . . . . . . . . . . . . . . . . . . . . Robots Hopped 1 | . . . . . . . . . . . . . . . . . . . . 1 . . . . . . Potential Cave-ins 16 | . . . 2 . . . . . . . . . . . . . . . . . . 14 . . . . Cave-ins Triggered 2 | . . . . . . . . . . . . . . . . . . . . . . 2 . . . . Teleports 4 | . . . . . . . . . . . . . . . . . . . . . 1 1 . . 1 1 Exploration Rate (%) 55 | 7 22 95 83 77 11 66 98 14 93 22 70 80 60 90 9 69 80 89 86 11 83 18 22 13 70 51 Regions Visited 26 Branch Regions 16 Pre-discovered Areas 9 | . . 1 1 . . . 3 . . . . . 3 . . 1 . . . . . . . . . . Known Exits Taken 6 | . . . . 1 1 . . . . 1 . . . . 1 . . . . 1 . 1 . . . . Unknown Exits Taken 18 | 1 1 1 1 . . 1 1 . . . 1 1 1 1 . 1 1 1 1 . 1 . 1 1 1 . Scrap Searched 15 | . . 1 . . . . . . . . 2 1 . 1 . 2 3 . 5 . . . . . . . Spaces Dug 160 | . . . 29 2 1 . 1 . . 18 3 2 . 26 7 4 7 1 4 14 6 . . 27 7 1 Terrain Destroyed 1069 | . . . 108 49 1 12 45 26 . 112 8 114 . 89 17 6 9 5 34 32 16 7 8 181 86 104 Melee 5 | . . . . . . . . . . . . . . . . . . . . . 5 . . . . . Projectile 481 | . . . 5 5 1 12 45 26 . 11 8 13 . 10 17 6 9 5 34 32 8 7 8 102 13 104 AOE 583 | . . . 103 44 . . . . . 101 . 101 . 79 . . . . . . 3 . . 79 73 . Terrain Rammed . | . . . . . . . . . . . . . . . . . . . . . . . . . . . Walls Destroyed . | . . . . . . . . . . . . . . . . . . . . . . . . . . . Machines Disabled . | . . . . . . . . . . . . . . . . . . . . . . . . . . . Actions | -11 -10 -10 -10 -8 -7 -7 -7 -5 -5 -5 -5 -5 -5 -4 -4 -4 -4 -4 -3 -3 -3 -3 -2 -1 -1 -1 --------- Run | Yrd Mat Min Sub Mat Fac Sto Rec Fac Was Fac Upp Upp Zhi Pro Fac Upp Upp War Pro Res Qua Frg Res Acc Com Ac0 Total 26476 | 142 71 630 2145 1417 388 561 3244 464 117 812 704 897 164 871 386 570 619 990 1704 372 1365 502 614 697 4998 1032 Wait 3746 | . . . 83 79 24 26 1210 11 2 32 92 46 1 34 2 8 . 62 668 20 181 48 57 184 834 42 Move 20369 | 110 62 600 1899 1116 307 446 1900 403 103 681 602 796 146 800 337 542 601 836 988 309 955 319 510 354 3884 763 Hop 1 | . . . . . . . . . . . . . . . . . . . . 1 . . . . . . Pick Up 277 | 9 . 7 12 33 9 8 21 8 4 20 . 1 2 3 7 4 4 16 4 3 25 14 3 6 47 7 Fast Attach 104 | 4 . . 6 19 1 12 1 3 . 4 . . 3 . 2 . . 13 1 2 15 4 . 4 7 3 Attach 121 | 2 1 . 6 5 2 1 1 3 1 5 1 5 3 2 4 3 1 4 1 1 22 7 4 9 19 8 Detach 87 | . . . 1 3 . 2 7 1 2 3 . 4 3 3 3 1 1 5 2 1 14 2 3 10 14 2 Swap 211 | . . 2 32 17 8 4 1 7 . 8 2 9 . 7 . 1 1 5 4 . 13 15 4 19 14 38 Drop 280 | . . 5 19 20 8 21 30 9 5 5 . 3 1 2 4 1 2 24 5 4 38 10 2 12 41 9 Fire 1110 | 16 8 8 80 116 18 39 71 19 . 53 7 33 5 20 27 10 9 25 31 31 44 35 31 96 118 160 Melee 91 | . . . . . . . . . . . . . . . . . . . . . 58 33 . . . . Ram . | . . . . . . . . . . . . . . . . . . . . . . . . . . . Kick 4 | . . . . 3 . . . . . 1 . . . . . . . . . . . . . . . . Crush 26 | 1 . 8 7 . . 2 2 . . . . . . . . . . . . . . . . 3 3 . Escape Stasis 29 | . . . . . 10 . . . . . . . . . . . . . . . . 15 . . 4 . Rewire 19 | . . . . 6 . . . . . . . . . . . . . . . . . . . . 13 . Trap . | . . . . . . . . . . . . . . . . . . . . . . . . . . . Miscellaneous 1 | . . . . . 1 . . . . . . . . . . . . . . . . . . . . . Route ------- -11/Scrapyard -10/Materials -10/Mines (discovered 3 exits: [*Mat x2] / *Sub) -10/Subcaves -8/Materials (discovered 2 exits: *Fac x2) -7/Factory (discovered 4 exits: [*Fac] / *Sto / Low x2) -7/Storage -7/Recycling -5/Factory -5/Waste -5/Factory (discovered 2 exits: *Upp x2) -5/Upper Caves -5/Upper Caves (discovered 2 exits: *Fac / *Zhi) -5/Zhirov -4/Proximity Caves -4/Factory (discovered 3 exits: *Upp x2 / Arm) -4/Upper Caves -4/Upper Caves (discovered 2 exits: *Res / *War) -4/Warlord -3/Proximity Caves -3/Research (discovered 3 exits: Res / *Qua x2) -3/Quarantine (discovered 3 exits: *Res / [*Sec] / *Frg) -3/Protoforge -2/Research -1/Access -1/Command (discovered 3 exits: *Sur x2 / [*Ac0]) -1/Access_0 Near Former Tau Ceti IV History --------- Turn | Location | Event 27 | -11/Scrapyard | Discovered new exit (range 16) 241 | -11/Scrapyard | Entered Materials 300 | -10/Materials | Build established: Mutant 300 | -10/Materials | Discovered new exit (range 8) 366 | -10/Materials | Entered Mines 411 | -10/Mines | Discovered new exit (range 7) 424 | -10/Mines | Discovered new exit (range 5) 733 | -10/Mines | Discovered new exit (range 16) 777 | -10/Mines | Learned location of Recycling (-7) 875 | -10/Mines | Met a Derelict shopkeep closing up shop 1066 | -10/Mines | Assisted by bots powering up and referring to "LRC-V3" 1375 | -10/Mines | Entered Subcaves 1375 | -10/Subcaves | Accompanied by 3 allies 1456 | -10/Subcaves | Visited 4L-MR0's lab 1476 | -10/Subcaves | Found Prototype Protection 1482 | -10/Subcaves | Identified Gun Armor 1524 | -10/Subcaves | Shifting Twisted Machinery released Sub. Laser 1565 | -10/Subcaves | Shifting Twisted Machinery released Spk. Treads 1761 | -10/Subcaves | Learned 2 Materials zone layouts 2010 | -10/Subcaves | Learned location of Zion (-7) 2010 | -10/Subcaves | Met a Zionite searching for "candidates" 2573 | -10/Subcaves | Lost 3 allies 2762 | -10/Subcaves | A swath of the cavern ceiling suddenly collapsed 3309 | -10/Subcaves | Shifting Twisted Machinery released Sub. Shrapnel Launcher 3323 | -10/Subcaves | A swath of the cavern ceiling suddenly collapsed 3355 | -10/Subcaves | Build established: Scavenger-Mutant 3420 | -10/Subcaves | Discovered new exit (range 4) 3675 | -10/Subcaves | Ambushed by Subdweller buried in earth 4254 | -10/Subcaves | Shifting Twisted Machinery released Mak. Light Armor Plating 4260 | -10/Subcaves | Shifting Twisted Machinery released Mak. Light Armor Plating 4346 | -10/Subcaves | A Subdweller sparked back to life 4346 | -10/Subcaves | A Subdweller sparked back to life 4438 | -10/Subcaves | Core integrity fell below 50% 4446 | -10/Subcaves | Ambushed by Subdweller buried in earth 4452 | -10/Subcaves | Core integrity fell below 20% 4481 | -10/Subcaves | Lost 9 parts (1p3n1u4w) 4522 | -10/Subcaves | Attached Gun Armor, gained temporary slots: Weapon x2 4528 | -10/Subcaves | Found Meta Core 4546 | -10/Subcaves | Entered Materials 4546 | -8/Materials | Evolved 4 slots: Propulsion x2, Utility x2 4547 | -8/Materials | Identified exit to Factory 5486 | -8/Materials | Build established: Tank 5676 | -8/Materials | Discovered exit to Factory (range 16) 6623 | -8/Materials | Core integrity fell below 50% 7141 | -8/Materials | Entered Factory 7141 | -7/Factory | Evolved 2 slots: Propulsion x1, Utility x1 7362 | -7/Factory | Identified exit to Storage 7362 | -7/Factory | Identified exit to Lower Caves 7393 | -7/Factory | Discovered new exit (range 15) 7452 | -7/Factory | Build established: Scavenger-Tank 7805 | -7/Factory | Entered Storage 7882 | -7/Storage | Found Prototype Launcher 7882 | -7/Storage | Identified Rocket Array 7886 | -7/Storage | Found Rocket Array 8368 | -7/Storage | Build established: Tank 8658 | -7/Storage | Used back door to open Recycling access 8658 | -7/Storage | Discovered new exit (range 4) 8662 | -7/Storage | Entered Recycling 8683 | -7/Recycling | Build established: Mutant 9312 | -7/Recycling | Discovered new exit (range 13) 9887 | -7/Recycling | Entered Scraplab 9894 | -7/Recycling | Found Prototype Device 9894 | -7/Recycling | Identified Scrap Engine 10936 | -7/Recycling | Build established: Construct 13188 | -7/Recycling | Entered Factory 13188 | -5/Factory | Evolved 4 slots: Power x1, Propulsion x1, Weapon x2 13229 | -5/Factory | Attached Meta Core, gained temporary slots: Propulsion, Utility, Weapon 13520 | -5/Factory | Discovered new exit (range 15) 13604 | -5/Factory | Identified exit to Upper Caves 13791 | -5/Factory | Sucked down chute 13791 | -5/Factory | Entered Waste 13796 | -5/Waste | Found Fusion Bomb Launcher 13806 | -5/Waste | EMP discharged 13806 | -5/Waste | System corruption reached 10% 13818 | -5/Waste | Spotted C-40 Crusher 13822 | -5/Waste | Spotted C-40 Crusher 13864 | -5/Waste | Spotted C-40 Crusher 13869 | -5/Waste | Spotted C-40 Crusher 13873 | -5/Waste | Spotted C-40 Crusher 13881 | -5/Waste | Crushed by Compactor (1 part destroyed, 1 dropped) 13886 | -5/Waste | Spotted C-40 Crusher 13896 | -5/Waste | Discovered new exit (range 12) 13905 | -5/Waste | Entered Factory 15196 | -5/Factory | Entered Upper Caves 16521 | -5/Upper Caves | Spotted B-75 Beast 16536 | -5/Upper Caves | Discovered new exit (range 8) 16565 | -5/Upper Caves | Entered another Upper Caves area 16584 | -5/Upper Caves | Discovered new exit (range 13) 16607 | -5/Upper Caves | Learned Factory terminal intel 16708 | -5/Upper Caves | Encountered a Warlord checkpoint 16904 | -5/Upper Caves | Lost 3 allies 18417 | -5/Upper Caves | Attracted the attention of an 0b10 checkpoint 19289 | -5/Upper Caves | Discovered new exit (range 16) 19387 | -5/Upper Caves | Entered Zhirov 19388 | -5/Zhirov | Discovered new exit (range 3) 19533 | -5/Zhirov | Learned location of Quarantine (-3) 19533 | -5/Zhirov | Learned location of Testing (-2) 19533 | -5/Zhirov | Learned location of Command (-1) 19610 | -5/Zhirov | Found Alien Artifact 19610 | -5/Zhirov | Identified Integrated Dissipator 19610 | -5/Zhirov | Installed Integrated Dissipator, increased core heat dissipation (+20) 19651 | -5/Zhirov | Found Alien Artifact 19871 | -5/Zhirov | Entered Proximity Caves 19898 | -4/Proximity Caves | Learned Research non-interactive machine intel 19949 | -4/Proximity Caves | Learned location of 1 exit from Research 21198 | -4/Proximity Caves | Discovered new exit (range 6) 21392 | -4/Proximity Caves | Entered Factory 21392 | -4/Factory | Evolved 2 slots: Utility x2 21393 | -4/Factory | Loaded intel: 26 terminal locations 21750 | -4/Factory | Identified exit to Upper Caves 21750 | -4/Factory | Identified exit to Armory 22091 | -4/Factory | Entered Upper Caves 22124 | -4/Upper Caves | Learned Research emergency access door positions 22411 | -4/Upper Caves | Found Alien Artifact 22747 | -4/Upper Caves | Discovered new exit (range 2) 22801 | -4/Upper Caves | Entered another Upper Caves area 22824 | -4/Upper Caves | Learned 8 Research zone layouts 22889 | -4/Upper Caves | Discovered new exit (range 8) 23316 | -4/Upper Caves | Discovered new exit (range 11) 23323 | -4/Upper Caves | Encountered a Warlord checkpoint 23573 | -4/Upper Caves | Entered Warlord 23659 | -4/Warlord | Found Prototype Reactor 23669 | -4/Warlord | Found Prototype Device 23669 | -4/Warlord | Identified Thermal Barrier 23678 | -4/Warlord | Found Prototype Processor 23678 | -4/Warlord | Identified Exp. Armor Integrity Analyzer 23758 | -4/Warlord | Received a Watcher feed algorithm from an ecstatic Tinkerer 24216 | -4/Warlord | Visited the Vortex Lab 24223 | -4/Warlord | Warlord's base attacked by MAIN.C 24225 | -4/Warlord | Found Prototype Energy Gun 24225 | -4/Warlord | Identified Vortex Shotgun 24230 | -4/Warlord | Found Vortex Shotgun 24308 | -4/Warlord | Met Warlord 24567 | -4/Warlord | Spotted B-90 Cyclops 24573 | -4/Warlord | Warlord forces counterattacked 24579 | -4/Warlord | Spotted B-86 Titan 24617 | -4/Warlord | Spotted Executioner 24631 | -4/Warlord | Lost 10 allies 24640 | -4/Warlord | Found Prototype Processor 24641 | -4/Warlord | Identified Exp. Core Analyzer 24650 | -4/Warlord | Found Prototype Processor 24714 | -4/Warlord | Lost 5 allies 24719 | -4/Warlord | Discovered new exit (range 13) 24784 | -4/Warlord | Lost 10 allies 24823 | -4/Warlord | Spotted Striker 24823 | -4/Warlord | Spotted Striker 24853 | -4/Warlord | Entered Proximity Caves 24864 | -3/Proximity Caves | Lost 5 allies 25477 | -3/Proximity Caves | Attracted the attention of an 0b10 checkpoint 27336 | -3/Proximity Caves | Discovered new exit (range 8) 27364 | -3/Proximity Caves | Entered Research 27364 | -3/Research | Evolved 2 slots: Utility x2 27365 | -3/Research | Identified exit to Research 27366 | -3/Research | Identified exit to Quarantine 27368 | -3/Research | Loaded intel: 78 non-interactive machine locations 27436 | -3/Research | Identified Exp. Targeting Computer 27455 | -3/Research | Spotted B-86 Titan 27518 | -3/Research | Found Prototype Protection 27655 | -3/Research | Found Fusion Bomb Launcher 27931 | -3/Research | Entered Quarantine 27936 | -3/Quarantine | Identified Centrium Heavy Armor Plating 28041 | -3/Quarantine | Found Alien Artifact 28059 | -3/Quarantine | Found Alien Slashing Weapon 28059 | -3/Quarantine | Identified Sigix Broadsword 28326 | -3/Quarantine | Found Alien Impact Weapon 28371 | -3/Quarantine | Found Quantum Capacitor 28446 | -3/Quarantine | Found Alien Artifact 28446 | -3/Quarantine | Identified Dimensional Node Initializer (x2) 28446 | -3/Quarantine | Initialized slip node 28473 | -3/Quarantine | Found Alien Artifact 28505 | -3/Quarantine | Found Alien Artifact 28569 | -3/Quarantine | Identified Phase Armor 28730 | -3/Quarantine | Discovered exit to Research (range 4) 28802 | -3/Quarantine | System corruption reached 10% 28866 | -3/Quarantine | Spotted Fortress 28867 | -3/Quarantine | Identified Core Stripper 28895 | -3/Quarantine | Identified Transdimensional Reconstructor 28895 | -3/Quarantine | Warped through subspace to slip node 28903 | -3/Quarantine | Found Alien Artifact 28909 | -3/Quarantine | Found Transdimensional Reconstructor 29372 | -3/Quarantine | Destroyed Fortress 29389 | -3/Quarantine | Found Prototype Device 29389 | -3/Quarantine | Identified Exp. Force Field 29399 | -3/Quarantine | Found Prototype Device 29399 | -3/Quarantine | Identified Exp. EM Shield 29408 | -3/Quarantine | Found Centrium Heavy Armor Plating 29498 | -3/Quarantine | Discovered new exit (range 5) 29498 | -3/Quarantine | Discovered new exit (range 6) 29622 | -3/Quarantine | Entered Protoforge 29714 | -3/Protoforge | Spotted Hotshot 29714 | -3/Protoforge | Spotted Hotshot 29734 | -3/Protoforge | Superfortress began startup sequence 29735 | -3/Protoforge | Spotted Hotshot 29736 | -3/Protoforge | Spotted Hotshot 29737 | -3/Protoforge | Destroyed Hotshot 29739 | -3/Protoforge | Destroyed Hotshot 29742 | -3/Protoforge | Spotted Hotshot 29750 | -3/Protoforge | Destroyed Hotshot 29758 | -3/Protoforge | Destroyed Hotshot 29760 | -3/Protoforge | Destroyed Hotshot 29801 | -3/Protoforge | Discovered exit to Research (range 4) 29806 | -3/Protoforge | Initialized slip node 29865 | -3/Protoforge | Spotted Hotshot 29866 | -3/Protoforge | Spotted Hotshot 29875 | -3/Protoforge | Spotted Hotshot 29961 | -3/Protoforge | Destroyed Hotshot 29961 | -3/Protoforge | Spotted Hotshot 30061 | -3/Protoforge | Destroyed Hotshot 30067 | -3/Protoforge | Destroyed Hotshot 30154 | -3/Protoforge | Found Prototype Storage 30154 | -3/Protoforge | Identified Cep. NT7 Matterbank 30172 | -3/Protoforge | Identified Terrabomb 30172 | -3/Protoforge | Used Terrabomb 30172 | -3/Protoforge | Additional patrols dispatched to research labs 30176 | -3/Protoforge | Crushed by falling debris 30177 | -3/Protoforge | Spotted Immortal 30177 | -3/Protoforge | Spotted Immortal 30178 | -3/Protoforge | Spotted Immortal 30180 | -3/Protoforge | Spotted Hotshot 30183 | -3/Protoforge | Spotted Hotshot 30185 | -3/Protoforge | Crushed by falling debris 30187 | -3/Protoforge | Spotted Hotshot 30189 | -3/Protoforge | Spotted Hotshot 30191 | -3/Protoforge | Core integrity fell below 50% 30201 | -3/Protoforge | Found Prototype Device 30203 | -3/Protoforge | Spotted Hotshot 30203 | -3/Protoforge | Spotted Hotshot 30203 | -3/Protoforge | Spotted Hotshot 30203 | -3/Protoforge | Spotted Hotshot 30209 | -3/Protoforge | Spotted Immortal 30211 | -3/Protoforge | Spotted Decapitator 30211 | -3/Protoforge | Spotted Decapitator 30211 | -3/Protoforge | Spotted Decapitator 30226 | -3/Protoforge | Found Prototype Energy Cannon 30229 | -3/Protoforge | Found Cep. Disintegration Ray 30232 | -3/Protoforge | Found Cep. Helical Railcannon 30236 | -3/Protoforge | Found Cep. Disintegration Ray 30238 | -3/Protoforge | Lost 3 parts (2u1w) 30240 | -3/Protoforge | Found Prototype Energy Cannon 30243 | -3/Protoforge | Found Faulty Cep. Heavy Railcannon 30245 | -3/Protoforge | Found Faulty Cep. Miniperforator 30247 | -3/Protoforge | Warped through subspace to slip node 30250 | -3/Protoforge | Found Prototype Energy Cannon 30271 | -3/Protoforge | Entered Research 30271 | -2/Research | Warlord forces began assault on 0b10 30271 | -2/Research | Evolved 2 slots: Propulsion x1, Utility x1 30381 | -2/Research | Research machine network offline 30658 | -2/Research | Spotted B-90 Cyclops 30675 | -2/Research | Spotted Striker 30700 | -2/Research | Borebot progress halted 30708 | -2/Research | Destroyed Striker 30775 | -2/Research | Spotted Striker 30779 | -2/Research | Borebot progress halted 30789 | -2/Research | Destroyed Striker 30818 | -2/Research | Discovered new exit (range 9) 31020 | -2/Research | Borebot progress halted 31036 | -2/Research | Spotted Executioner 31042 | -2/Research | Destroyed Executioner 31044 | -2/Research | Spotted Executioner 31051 | -2/Research | Entered Access 31051 | -1/Access | Evolved 2 slots: Power x1, Utility x1 31088 | -1/Access | Garrison activated, responded to threat 31136 | -1/Access | Spotted 3L-2M8(K) 31158 | -1/Access | Destroyed 3L-2M8(K) 31180 | -1/Access | Lost 3 allies 31431 | -1/Access | Destroyed 10 combat bots 31551 | -1/Access | First assault squad dispatched 31704 | -1/Access | Lost 3 parts (3u) 31742 | -1/Access | Identified Cep. Plasma Driver (x3) 31921 | -1/Access | Discovered new exit (range 7) 31977 | -1/Access | Entered Command 32049 | -1/Command | Spotted B-99 Colossus 32227 | -1/Command | First assault squad dispatched 32249 | -1/Command | Identified exit to Surface 32466 | -1/Command | Found Hvy. Reactive Plating 32477 | -1/Command | Spotted M Guard 32478 | -1/Command | Spotted Combat Programmer 32478 | -1/Command | Spotted Combat Programmer 32481 | -1/Command | Spotted M Guard 32483 | -1/Command | Destroyed Combat Programmer 32487 | -1/Command | Destroyed Combat Programmer 32495 | -1/Command | Destroyed M Guard 32521 | -1/Command | Destroyed M Guard 32521 | -1/Command | All MAIN.C guards destroyed 32541 | -1/Command | Found Prototype Device 32541 | -1/Command | Identified AEGIS Remote Shield 32544 | -1/Command | Found Prototype Launcher 32552 | -1/Command | Found Prototype Energy Cannon 32733 | -1/Command | Found Prototype Energy Cannon 32766 | -1/Command | Build established: Scavenger-Construct 32794 | -1/Command | Met MAIN.C 32805 | -1/Command | 0b10 Conduit disabled 32818 | -1/Command | System corruption reached 10% 32819 | -1/Command | Destroyed MAIN.C Shell 32821 | -1/Command | MAIN.C activated Command garrisons 32872 | -1/Command | Destroyed MAIN.C 32892 | -1/Command | Found Centrium Heavy Armor Plating 32918 | -1/Command | Found Exp. Targeting Computer 32926 | -1/Command | Identified Hpw. Transdimensional Reconstructor 32926 | -1/Command | Identified Subatomic Replicator 32926 | -1/Command | Identified Cld. Nova Cannon (x2) 32926 | -1/Command | Identified Ragnarok Missile Launcher 32926 | -1/Command | Discovered exit to Surface (range 28) 32926 | -1/Command | Discovered exit to Surface (range 100) 32926 | -1/Command | Extracted map data and part IDs from MAIN.C's data core 33603 | -1/Command | Found AEGIS Remote Shield 33610 | -1/Command | Found Exp. System Purifier 33693 | -1/Command | Found Exp. Force Field 33696 | -1/Command | Found Centrium Heavy Armor Plating 34128 | -1/Command | Found Exp. Core Analyzer 34947 | -1/Command | Found Corrupted Multirail 34954 | -1/Command | Found Multirail 35250 | -1/Command | Phase Generator disabled 37274 | -1/Command | Used Subatomic Replicator to replicate Faulty Cep. Plasma Driver 37592 | -1/Command | Warped through subspace to slip node 37592 | -1/Command | Discovered new exit (range 5) 37600 | -1/Command | Entered Access_0 37603 | -1/Access_0 | Met Architect 37608 | -1/Access_0 | Destroyed A8 37613 | -1/Access_0 | Architect warped through subspace 37656 | -1/Access_0 | Architect warped through subspace 37688 | -1/Access_0 | Architect warped through subspace 37713 | -1/Access_0 | Core integrity fell below 50% 37713 | -1/Access_0 | Found Exp. Weapon Cycler 37715 | -1/Access_0 | Subspace Access Node disabled 37731 | -1/Access_0 | Architect warped through subspace 37781 | -1/Access_0 | Architect warped through subspace 37810 | -1/Access_0 | Architect warped through subspace 37846 | -1/Access_0 | Architect warped through subspace 37853 | -1/Access_0 | A6 warped into view 37928 | -1/Access_0 | Found Prototype Device 37928 | -1/Access_0 | Identified Desublimator 37944 | -1/Access_0 | Destroyed A6 37970 | -1/Access_0 | Architect warped through subspace 38039 | -1/Access_0 | Architect warped through subspace 38071 | -1/Access_0 | Found Core Expander 38071 | -1/Access_0 | Installed Core Expander, added new Propulsion slot 38082 | -1/Access_0 | Architect warped through subspace 38116 | -1/Access_0 | A5 warped into view 38153 | -1/Access_0 | Destroyed A5 38171 | -1/Access_0 | Subspace Access Node disabled 38200 | -1/Access_0 | Architect warped through subspace 38225 | -1/Access_0 | Architect warped through subspace 38256 | -1/Access_0 | Found Hpw. Transdimensional Reconstructor 38286 | -1/Access_0 | Architect warped through subspace 38361 | -1/Access_0 | Architect warped through subspace 38398 | -1/Access_0 | Architect warped through subspace 38416 | -1/Access_0 | Subspace Access Node disabled 38439 | -1/Access_0 | A4 warped into view 38473 | -1/Access_0 | Destroyed A4 38494 | -1/Access_0 | Architect warped through subspace 38506 | -1/Access_0 | Subspace Access Node disabled 38521 | -1/Access_0 | Core integrity fell below 20% 38570 | -1/Access_0 | Destroyed Architect 38571 | -1/Access_0 | Architect triggered a singularity event 38572 | -1/Access_0 | Warped through subspace to slip node 38572 | -1/Access_0 | Discovered exit to Surface (range 8) 38573 | -1/Access_0 | Released all parts (12) 38576 | *** | Escaped singularity! Last Messages --------------- 38572_ Warped through subspace, drawn to slip node. 38572_ EXIT=FOUND: SURFACE 38573_ A0_COM: 9. 38573_ Released Centrium Heavy Armor Plating. 38573_ Released Desublimator. 38573_ Released Quantum-Vortex Reactor. 38573_ Arm. Scrap Engine damaged due to network destabilization (-7). 38573_ Released Hovering Antigrav-Cooled Exoskeleton. 38573_ Arm. Scrap Engine damaged due to network destabilization (-9). 38573_ Released Arm. Scrap Engine. 38573_ Released Huge Storage Unit. 38573_ Released Exp. Core Analyzer. 38573_ Released Hvy. Thermal Plasma Construct/C. 38573_ Released Exp. Targeting Computer. 38573_ Released Exp. Heat Sink. 38573_ Released Exp. Biometal Heavy Treads. 38573_ Released Graphene Brace. 38574_ A0_COM: 8. 38575_ A0_COM: 7. 38576_ A0_COM: 6. Map ----- +----------------------------------------------------+ | | | | | | | | | | | | | | | | | | | | | | | | | | | | | | | | | ?????????????????????????????????????????????????? | | ?????????????????????????????????????????????????? | | ?????????????????????????????????????????????????? | | ?????????????????????????????????????????????????? | | ?????????????????????????????????????????????????? | | ?????????????????????????????????????????????????? | | ????????????????????????###??????????????????????? | | ???????????????????????## ##?????????????????????? | | ???????????????????????# #?????????????????????? | | ???????????????????????# @ #?????????????????????? | | ??????????????????????## #?????????????????????? | | ??????????????????????# #?????????????????????? | | ??????????????????????# ##?????????????????????? | | ??????????????????????##!! #?????????????????????? | | ??????????????????????#!!==#?????????????????????? | | ??????????????????????#!!!##?????????????????????? | | ??????????????????????#]!!!#?????????????????????? | | ??????????????????????#]!=##?????????????????????? | | ??????????????????????##!!#??????????????????????? | | ???????????????????????####??????????????????????? | | ?????????????????????????????????????????????????? | | ?????????????????????????????????????????????????? | | ?????????????????????????????????????????????????? | | ?????????????????????????????????????????????????? | | ?????????????????????????????????????????????????? | | ?????????????????????????????????????????????????? | | ?????????????????????????????????????????????????? | | ?????????????????????????????????????????????????? | | ?????????????????????????????????????????????????? | | ?????????????????????????????????????????????????? | | ?????????????????????????????????????????????????? | | ?????????????????????????????????????????????????? | | ?????????????????????????????????????????????????? | | ?????????????????????????????????????????????????? | +----------------------------------------------------+ Best States ------------- Heat Dissipation 167 Coolant Potential 120 Energy Generation 109 Energy Capacity 3012 Matter Stores 300 Matter Capacity 300 Sight Range 16 Robot Scan Range 16 Terrain Scan Density 10 Jamming Range 12 Additional Mass Support 16 Corruption Block 10 Armor Coverage 1200 Resistance: KI 40 Resistance: TH 50 Resistance: EM 75 Core Shielding 20 Utility Shielding 66 Weapon Cycling 30 Evasion (%) 60 Targeting Accuracy 12 Core Analysis 8 Armor Integrity Analysis 50 Recoil Reduction 6 Defensive Hacking 24 Item Schematics ----------------- Assault Drone Bay | -5/Zhirov | Free Exp. Heat Sink | -5/Zhirov | Free Exp. Optical Array | -5/Zhirov | Free Imp. Arc Thrower | -5/Zhirov | Free Robot Schematics ------------------ None Fabricated ------------ Nothing Repaired ---------- Nothing Studied --------- Pulse Rifle | -8/Materials | Hacked Alien Tech Used ----------------- Integrated Dissipator Sigix Broadsword Dimensional Node Initializer Phase Armor Core Stripper Transdimensional Reconstructor Terrabomb Subatomic Replicator High-powered Transdimensional Reconstructor Core Expander Achievements -------------- Anti-science Crusade Partsplosion Resistances Are Futile Challenges ------------ None Game ------ Seed MultitargetingIonicDatajack Manual? 0 Play Time 05:43:45 Cumulative 629.9 hours Start 2026.01.28 @ 15:37:45 End 2026.01.31 @ 13:24:26 Sessions 19 Manual Loads 0 Difficulty Rogue Special Mode None Game No. 262 Rogue 262 Adventurer 0 Explorer 0 Win Type 6 Total 30 Types 9/4/9/2/1/0/2/1/1/1 Lore% 93 Gallery% 87 Achievement% 65 Wizard Run 0 Options --------- Layout 0 ASCII 0 Keyboard 0 Movement Arrows Keybinds 0 Fullscreen 2 Font 18/SmallcapsGlow Map View 76x50 Zoom Use 0% Tactical HUD 1 Map Filters NONE Filters NONE Steam 1 RUN: 53bd80f3-fd14-416e-ad26-989cb4a80f2b